[Event "Carolinas Classic 2022"]
[Site "Charlotte"]
[Date "2022.06.13"]
[Round "5.4"]
[White "Panchanathan, Magesh Chandran"]
[Black "Johnson, Donald"]
[Result "1-0"]
[ECO "A37"]
[WhiteElo "2474"]
[BlackElo "2102"]
[Annotator "TA"]
[PlyCount "187"]
[EventDate "2022.06.10"]
[EventType "swiss"]
[EventCountry "USA"]
[SourceTitle "playchess.com"]
[Source "ChessBase"]
[SourceQuality "1"]
[TimeControl "5400+30"]

{[%evp 23,187,-16,-23,-32,-38,-43,-47,-43,-35,-50,-35,-54,-48,-47,-44,-56,-43,-48,37,-61,14,0,14,26,47,43,41,42,41,24,74,61,70,59,66,64,64,67,64,71,55,0,0,0,97,33,49,43,51,0,85,88,102,102,107,104,147,151,142,150,141,96,155,151,206,212,206,213,212,189,177,182,166,170,205,191,193,193,206,206,253,252,252,242,270,250,238,196,193,145,146,148,148,158,165,140,172,133,133,133,402,395,426,409,737,737,12847,6012,29939,1900,29951,29948,29950,29954,29951,29951,6536,2189,1197,87,29955,29950,29960,29955,29962,29963,29963,29964,29964,29965,29965,29966,29966,29967,29967,29968,29968,29969,29966,29969,29968,29969,29969,29970,29976,29977,29977,29978,29977,29978,29978,29979,29975,29975,29978,29979,29975,8,29988,29989,29989,29986,29994,29995,29995,29996]} 1. c4 {[%emt 0:00:18]} g6 {[%emt 0:06:23]} 2. Nf3 {[%emt 0:00:23]} Bg7 {[%emt 0:00:18]} 3. g3 {[%emt 0:00:01]} c5 {[%emt 0:00:16]} 4. Bg2 {[%emt 0:00:07]} Nc6 {[%emt 0:00:07]} 5. O-O {[%emt 0:00:10]} e5 {[%emt 0:00:11]} 6. Nc3 {[%emt 0:00:34]} d6 {[%emt 0:00:10]} 7. d3 {[%emt 0:00:25]} Nge7 {[%emt 0:00:12]} 8. a3 {[%emt 0:00:44]} O-O {[%emt 0:00:22]} 9. Bd2 {[%emt 0:00:37]} a5 {[%emt 0:00:30]} 10. Ne1 {[%emt 0:00:09][%cal Bf3e1,Be1c2,Bc2e3,Be3c4][%mdl 32]} Be6 {[%emt 0:00:15]} 11. Nc2 {[%emt 0:00:25]} d5 {[%emt 0:00:17]} 12. cxd5 {[%emt 0:00:55]} Nxd5 {[%emt 0:00:02]} 13. Ne3 {[%emt 0:00:23][%cal Re3d5] A37: Symmetrical English vs ...g6: 4 Bg2 Bg7 5 Nf3.} Nde7 {[%emt 0:04:25]} 14. Nc4 {[%emt 0:02:13]} Rb8 {[%emt 0:09:09]} 15. Nb5 {[%emt 0:01:50] Black is slightly better.} b6 {[%emt 0:02:09]} 16. Rc1 {[%emt 0:02:27] [#]} Qd7 $146 {[%emt 0:01:47]} ({Predecessor:} 16... Nd4 17. Nxd4 cxd4 18. b4 axb4 19. Bxb4 b5 20. Na5 Re8 21. Qd2 Rc8 22. Nb7 Qb6 {1-0 (39) Erigaisi,A (2359)-Yang,G (1693) Ahmedabad 2017}) 17. Qc2 {[%emt 0:20:12]} Rfd8 {[%emt 0:11:19]} 18. Rfd1 {[%emt 0:06:26]} f6 {[%emt 0:12:51]} 19. Be1 {[%emt 0:04:20]} Nd4 {[%emt 0:06:19]} 20. Nxd4 {[%emt 0:01:02]} Qxd4 {[%emt 0:00:49]} ({Black should try} 20... cxd4 $15 21. a4 Nd5) 21. Qb1 {[%emt 0:09:17]} (21. b4 $14) 21... Qd7 {[%emt 0:01:13]} ({Better is} 21... a4 $1 $15) 22. b4 $11 {[%emt 0:00:59]} cxb4 {[%emt 0:04:36]} 23. axb4 {[%emt 0:00:04]} Nd5 {[%emt 0:06:52]} 24. bxa5 {[%emt 0:01:02]} bxa5 {[%emt 0:00:15]} 25. Qa1 {[%emt 0:08:10]} a4 {[%emt 0:00:49]} 26. Na5 {[%emt 0:02:35]} Rdc8 {[%emt 0:03:10] Against Nc6} (26... Rbc8 $11 {remains equal.}) 27. Rc4 $16 {[%emt 0:01:21]} Nb6 {[%emt 0:03:28]} 28. Rxc8+ {[%emt 0:01:21]} Rxc8 {[%emt 0:00:14]} 29. Rb1 $1 {[%emt 0:00:04]} Nd5 {[%emt 0:02:11]} 30. Rb7 {[%emt 0:01:25]} Qe8 {[%emt 0:02:39]} 31. Nc4 $1 {[%emt 0:01:18]} Ra8 {[%emt 0:22:42]} 32. Qb1 {[%emt 0:14:34]} (32. Nb6 $14 Nxb6 33. Rxb6) 32... Bf8 $1 $11 {[%emt 0:00:00]} 33. Rb5 {[%emt 0:00:26]} Rd8 {[%emt 0:00:00]} (33... Nc7 $1 $11 {keeps the balance.} 34. Rb6 Nd5) 34. Ra5 {[%emt 0:00:34]} (34. Ba5 $16) 34... Rb8 {[%emt 0:00:00]} 35. Qa1 {[%emt 0:05:06]} (35. Qc2 $5 {[%cal Rg2d5]} Nb4 36. Bxb4 (36. Qxa4 Qxa4 37. Rxa4 Nc2 $11) 36... Rxb4 37. Ne3 $14 (37. Ra8 Qd7 $11)) 35... Nb4 {[%emt 0:00:00] Threatens to win with ...Nc2.} 36. Qd1 {[%emt 0:00:04] Inhibits Nc2.} ({Much worse is} 36. Qxa4 Qxa4 37. Rxa4 Nc2 $15) (36. Rxa4 $2 Nc2 37. Qa2 Nxe1 $19) (36. Bc3 $1 $14) 36... Qd8 {[%emt 0:00:00]} (36... e4 $11) 37. Qxa4 $16 {[%emt 0:01:22]} Bd7 {[%emt 0:00:00]} 38. Qd1 {[%emt 0:01:15]} Nc6 {[%emt 0:00:02]} 39. Ra6 {[%emt 0:02:12]} Nd4 {[%emt 0:00:37]} 40. e3 {[%emt 0:00:27]} Bb5 {[%emt 0:00:57]} 41. Ra1 {[%emt 0:01:55]} Ne6 {[%emt 0:00:54]} 42. Rb1 {[%emt 0:01:45]} Nc5 {[%emt 0:01:00]} (42... Be8 $142) 43. d4 $1 {[%emt 0:01:03][%cal Bd3d4,Bd4c5,Bc5c6][%mdl 32]} Bxc4 {[%emt 0:01:01]} (43... exd4 $16 44. Ba5 (44. Qxd4 Qxd4 45. exd4 Na6 $16) 44... Qc8) 44. Rxb8 $18 {[%emt 0:00:04]} Qxb8 {[%emt 0:00:05]} 45. dxc5 {[%emt 0:00:04]} Qb3 {[%emt 0:01:06]} 46. Qxb3 {[%emt 0:02:47]} Bxb3 {[%emt 0:00:01][%mdl 4096] Endgame KBB-KBB} 47. c6 {[%emt 0:00:08] And now c7 would win.} Be6 {[%emt 0:00:44]} 48. Bf1 {[%emt 0:00:07] aiming for Ba6.} Bc8 {[%emt 0:00:45] Inhibits Ba6.} 49. Bc4+ {[%emt 0:00:09]} Kg7 {[%emt 0:00:09]} 50. Ba5 {[%emt 0:01:09]} Bc5 {[%emt 0:00:35]} 51. Bd8 {[%emt 0:00:11]} f5 {[%emt 0:00:28]} 52. Kf1 {[%emt 0:00:12]} Kf8 {[%emt 0:00:20]} 53. Ke2 {[%emt 0:00:23]} Be7 {[%emt 0:01:12]} 54. Bc7 {[%emt 0:00:11]} e4 {[%emt 0:00:08]} 55. Ba5 {[%emt 0:00:27] Prevents Bb4.} Bc5 {[%emt 0:00:39]} 56. Kd2 {[%emt 0:01:53]} (56. Bd8 $18) 56... Ke7 $16 {[%emt 0:00:30]} 57. Kc3 {[%emt 0:00:11] Hoping for Bc7.} Kd6 {[%emt 0:00:08] Inhibits Bc7+.} 58. Bb5 {[%emt 0:00:03] White is more active.} Be6 {[%emt 0:01:12]} 59. h4 {[%emt 0:00:03]} h6 {[%emt 0:00:47]} 60. Bd8 {[%emt 0:03:04]} Bd5 {[%emt 0:00:32]} 61. c7 {[%emt 0:00:12]} Bb7 $2 {[%emt 0:00:05][%mdl 8192]} (61... Be6 $16 {is a better defense.} 62. Be8 g5) 62. Be8 $1 $18 {[%emt 0:01:08]} g5 {[%emt 0:00:37]} 63. h5 {[%emt 0:00:24][%cal Od8g5] Bxg5! is the strong threat.} Bc8 {[%emt 0:00:46] [#]} (63... Ke6 $142 64. Kc4 Ba7) 64. Bxg5 $1 {[%emt 0:01:27][%mdl 512]} hxg5 {[%emt 0:00:16]} (64... Bb6 65. Bxh6) 65. h6 {[%emt 0:00:04] h7 would kill now.} Ke6 {[%emt 0:00:28]} 66. h7 {[%emt 0:00:36]} Be7 {[%emt 0:00:15]} 67. h8=Q {[%emt 0:00:18]} ({Don't blunder} 67. Bf7+ $2 Kxf7 68. h8=Q Bf6+ 69. Qxf6+ Kxf6 $19) 67... Bf6+ {[%emt 0:00:02] [#]} 68. Qxf6+ $3 {[%emt 0:00:07]} Kxf6 {[%emt 0:00:05] KB-KB} 69. Kd4 {[%emt 0:00:29]} Ke7 {[%emt 0:00:17]} 70. Bb5 {[%emt 0:00:20]} (70. Bg6 $142 Kf6 71. Bh5) 70... Kd6 {[%emt 0:00:15] [#]} 71. Bc4 $2 {[%emt 0:00:14]} (71. g4 $1 $18 {[%cal Rg4f5] and the rest is easy.} fxg4 72. Kxe4) 71... Bb7 $2 {[%emt 0:01:34][%mdl 8192]} (71... g4 $16 72. Bd5 Bd7) 72. g4 $1 {[%emt 0:03:25]} fxg4 {[%emt 0:01:09]} 73. Bb3 {[%emt 0:00:40]} Kxc7 {[%emt 0:00:38]} 74. Ke5 {[%emt 0:00:15]} Kd7 {[%emt 0:00:30]} 75. Bd5 {[%emt 0:00:23]} Ba6 {[%emt 0:00:37]} 76. Bxe4 {[%emt 0:00:30]} Be2 {[%emt 0:00:27]} 77. Kf5 {[%emt 0:00:33]} Kd6 {[%emt 0:00:15]} 78. Kxg5 {[%emt 0:00:05]} Ke5 {[%emt 0:00:38]} 79. Bf5 {[%emt 0:00:03]} g3 {[%emt 0:00:06]} 80. fxg3 {[%emt 0:00:02]} Bf3 {[%emt 0:00:11]} 81. g4 {[%emt 0:00:28]} Be2 {[%emt 0:00:17]} 82. Bc2 {[%emt 0:00:16]} Bf3 {[%emt 0:00:30]} 83. Kh4 {[%emt 0:00:19]} Kf6 {[%emt 0:00:24]} 84. Kg3 {[%emt 0:00:05]} Be2 {[%emt 0:00:06]} 85. Kf4 {[%emt 0:00:02]} Bc4 {[%emt 0:00:10]} 86. e4 {[%emt 0:00:03][%cal Be3e4,Be4e5,Be5e6][%mdl 32]} Ke6 {[%emt 0:00:31]} 87. e5 {[%emt 0:00:04]} Kf7 {[%emt 0:00:02]} 88. Bf5 {[%emt 0:00:06]} Bd5 {[%emt 0:00:07]} 89. e6+ {[%emt 0:00:09]} Ke7 {[%emt 0:00:39] [#]} 90. Ke5 $2 {[%emt 0:00:03]} (90. Kg5 $1 {mates} Bb3 91. Kg6 Bd5 92. g5 Ba2 93. Kh7 Bd5 94. g6 Bc6 95. g7) 90... Bc6 $2 {[%emt 0:00:27][%mdl 8192]} (90... Bc4 $11 91. g5 Kf8 92. Kf6 Ke8 93. g6 Kd8 94. g7 Kc7 95. g8=Q Kd6 96. Qf8+ Kd5) 91. g5 {[%emt 0:00:07] White mates.} Bb5 {[%emt 0:00:22]} 92. Bg6 {[%emt 0:00:24]} Kf8 {[%emt 0:00:51]} 93. Kf6 {[%emt 0:00:07]} Kg8 {[%emt 0:00:04]} 94. Bf7+ {[%emt 0:00:12] Weighted Error Value: White=0.12 (very precise) /Black=0.22 (precise)} 1-0

[Event "Carolinas Classic 2022"]
[Site "Charlotte"]
[Date "2022.06.13"]
[Round "5.5"]
[White "Espinosa, Pedro"]
[Black "Wang, Tianqi"]
[Result "0-1"]
[ECO "C12"]
[WhiteElo "2019"]
[BlackElo "2331"]
[Annotator "TA"]
[PlyCount "108"]
[EventDate "2022.06.10"]
[EventType "swiss"]
[EventCountry "USA"]
[SourceTitle "playchess.com"]
[Source "ChessBase"]
[SourceQuality "1"]
[TimeControl "5400+30"]

{[%evp 10,108,14,0,56,47,79,51,77,31,32,31,87,104,106,88,87,94,110,85,79,63,50,66,58,43,57,66,50,58,64,60,83,68,166,77,96,50,143,68,96,96,93,95,110,0,0,0,0,0,0,-12,-6,-44,-31,-116,-102,-101,-101,-165,-167,-169,-162,-178,-178,-178,-178,-315,-316,-301,-213,-295,-286,-354,-375,-297,-203,-200,-204,-296,-286,-336,-327,-338,-326,-315,-316,-336,-335,-613,-585,-6063,-4994,-5566,-4343,-2786,-1871,-29967,-29967,-29982,-29982]} 1. d4 {[%emt 0:00:01]} Nf6 {[%emt 0:03:01]} 2. Nc3 {[%emt 0:00:13]} e6 {[%emt 0:00:33]} 3. e4 {[%emt 0:00:47][%cal Be2e4,Be4e5][%mdl 32]} d5 {[%emt 0:00:07]} 4. Bg5 {[%emt 0:00:19]} Bb4 {[%emt 0:01:45]} 5. e5 {[%emt 0:00:34]} h6 {[%emt 0:00:13]} 6. Bd2 {[%emt 0:00:28]} Ng8 {[%emt 0:00:06] C12: French: Classical System: McCutcheon Variation.} (6... Bxc3 $11 7. bxc3 Ne4) 7. Qg4 $14 {[%emt 0:05:13]} Bf8 {[%emt 0:00:08] [#]} 8. f4 $146 {[%emt 0:02:53]} ({Predecessor:} 8. h4 b6 9. h5 Qd7 10. O-O-O a5 11. f4 Ne7 12. Qf3 Ba6 13. Nh3 Nf5 14. Be1 {1-0 (44) Sluka,R (2380)-Biolek,R (2425) Czech Republic 1998}) 8... Bd7 {[%emt 0:02:23] White is slightly better.} 9. a3 {[%emt 0:02:14]} (9. Qg3 $16) 9... h5 {[%emt 0:01:29]} 10. Qg3 {[%emt 0:04:54]} h4 {[%emt 0:04:42]} (10... Nh6 $14) 11. Qf2 $16 {[%emt 0:05:38]} Nh6 {[%emt 0:01:59]} 12. Bd3 {[%emt 0:01:06]} g6 {[%emt 0:03:09]} 13. Nf3 {[%emt 0:04:55]} Ng4 {[%emt 0:01:11]} 14. Qg1 {[%emt 0:01:50]} b6 {[%emt 0:02:51]} 15. g3 {[%emt 0:04:24]} h3 {[%emt 0:01:19]} 16. Ng5 {[%emt 0:03:44]} c5 $1 {[%emt 0:01:24]} 17. Be2 {[%emt 0:01:33]} Nh6 {[%emt 0:01:03]} 18. g4 {[%emt 0:03:45] Inhibits Nf5.} Nc6 {[%emt 0:03:56]} 19. Be3 {[%emt 0:02:10][%cal Rd4c5]} cxd4 {[%emt 0:33:20]} 20. Bxd4 {[%emt 0:00:13]} Nxd4 {[%emt 0:00:54]} 21. Qxd4 {[%emt 0:00:24]} Ng8 {[%emt 0:00:10]} ({Black should try} 21... Bc5 $14 22. Qd3 b5) 22. Qd3 {[%emt 0:03:15]} (22. O-O-O $18) 22... Be7 {[%emt 0:08:41]} 23. Nxh3 {[%emt 0:02:22]} (23. Nf3 $1 $16) 23... Bc6 {[%emt 0:01:49] [#]} (23... Rc8 $14) 24. Nf2 {[%emt 0:01:48]} (24. O-O-O $1 $16) 24... g5 {[%emt 0:05:26]} 25. f5 {[%emt 0:03:21]} d4 {[%emt 0:01:47]} 26. Nce4 {[%emt 0:02:21] Strongly threatening 0-0-0.} Qd5 {[%emt 0:01:19]} 27. f6 {[%emt 0:09:10]} (27. Bf3 $16 {[%cal Oe4d6] Threatens to win with Nd6+!} Qxe5 28. fxe6) 27... Bd8 $1 $11 {[%emt 0:06:16][%cal Be7d8,Bd8c7,Bc7f4][%mdl 32]} 28. c3 {[%emt 0:08:29]} Qxe5 {[%emt 0:01:42] White must now prevent ...dxc3.} 29. cxd4 {[%emt 0:00:23]} Qf4 $36 {[%emt 0:00:21][%mdl 2048] Black is more active.} 30. Qf3 {[%emt 0:06:59] And now Qxf4 would win.} Bc7 {[%emt 0:04:48]} 31. Qxf4 {[%emt 0:01:01]} (31. h4 $5) 31... Bxf4 {[%emt 0:00:05]} 32. h3 {[%emt 0:01:19] White is on the road to losing.} (32. Bf3 $15) 32... Rd8 {[%emt 0:00:18]} 33. Rd1 {[%emt 0:01:38][%cal Oh3h4]} Rh6 {[%emt 0:00:20]} 34. Bf3 {[%emt 0:00:32] [#]} (34. h4 $17) 34... Ba4 $1 $19 {[%emt 0:00:43] A strong pair of Bishops.} 35. Rd3 {[%emt 0:01:00][%cal Oh3h4]} Nxf6 {[%emt 0:00:32]} 36. Nxf6+ {[%emt 0:00:23]} Rxf6 {[%emt 0:00:04]} 37. Ne4 {[%emt 0:00:22]} Rh6 {[%emt 0:00:03]} 38. b3 {[%emt 0:01:24]} (38. Kf2 $142) 38... Bb5 {[%emt 0:00:14]} 39. Rd1 {[%emt 0:00:31]} Ke7 {[%emt 0:00:48] Hoping for ...Rc8.} 40. a4 {[%emt 0:00:32]} Ba6 {[%emt 0:00:18]} 41. Be2 {[%emt 0:01:37]} Bb7 {[%emt 0:00:12]} 42. Bf3 {[%emt 0:00:01]} Bd5 {[%emt 0:00:06]} 43. Rd3 {[%emt 0:16:14]} f5 {[%emt 0:03:22]} 44. gxf5 {[%emt 0:00:00]} (44. Nf2 $142) 44... exf5 {[%emt 0:00:05]} 45. Nf2 {[%emt 0:00:00]} Re6+ {[%emt 0:00:48]} 46. Kf1 {[%emt 0:00:00]} Bxf3 {[%emt 0:00:10]} 47. Rxf3 {[%emt 0:00:00]} Rxd4 {[%emt 0:00:09]} 48. Nd3 {[%emt 0:00:00]} Be3 {[%emt 0:00:44]} 49. Ne1 {[%emt 0:00:00]} (49. Nf2 f4 50. Rg1) 49... Rd1 {[%emt 0:01:03] ( -> ...Bd4)} 50. Ke2 {[%emt 0:00:00]} Rd2+ {[%emt 0:00:03]} 51. Kf1 {[%emt 0:00:00]} f4 {[%emt 0:00:04]} 52. b4 {[%emt 0:00:00]} Kf6 {[%emt 0:00:59] ...Re4 is the strong threat.} 53. a5 {[%emt 0:00:00]} bxa5 {[%emt 0:00:05]} 54. bxa5 {[%emt 0:00:00]} a6 {[%emt 0:00:05] Weighted Error Value: White=0.63/Black=0.22 (precise)} 0-1